bitfinex/quotes_SOLUSD_20220208
["timestamp","ask_amount","ask_price","bid_price","bid_amount"]
[1644350319231,12.97,111.13,111.04,13.508]
[1644350319232,19.5055,111.13,111.04,13.508]
[1644350319432,6.0,111.13,111.05,40.4484499]
[1644350319632,6.0,111.13,111.05,41.78115265]
[1644350319832,67.96094671,111.15,111.05,42.03115265]
[1644350320032,43.54914671,111.15,111.06,1.33270275]
[1644350320335,43.54914671,111.15,111.07,38.38571617]
[1644350320733,43.54914671,111.15,111.07,52.13981617]
[1644350320734,57.05204671,111.15,111.07,52.13981617]
[1644350321534,57.30204671,111.15,111.07,52.13981617]
[1644350322233,57.30204671,111.15,111.07,51.88981617]
[1644350322532,63.30204671,111.15,111.07,51.88981617]
[1644350328637,63.05204671,111.15,111.07,51.88981617]
[1644350328837,63.05204671,111.15,111.07,52.13981617]
[1644350329139,63.05204671,111.15,111.07,51.88981617]
[1644350329836,63.05204671,111.15,111.07,52.13981617]
[1644350330237,63.05204671,111.15,111.07,51.88981617]
[1644350331041,6.0,111.15,111.07,51.88981617]
[1644350331245,6.0,111.15,111.07,62.63516555]
[1644350331440,46.6767,111.17,111.07,62.63516555]
[1644350331640,46.6767,111.17,111.07,62.65916555]
[1644350331841,46.6767,111.17,111.07,61.33081617]
[1644350332043,36.73531805,111.16,111.07,61.33081617]
[1644350332243,36.98531805,111.16,111.07,52.16381617]
[1644350332442,50.48971805,111.16,111.07,52.16381617]
[1644350332842,50.48971805,111.16,111.07,51.91381617]
[1644350335244,56.48971805,111.16,111.07,51.91381617]
[1644350337347,56.48971805,111.16,111.07,52.16381617]
[1644350337546,56.48971805,111.16,111.07,51.91381617]
[1644350337747,56.23971805,111.16,111.07,52.16381617]
[1644350340350,56.23971805,111.16,111.07,13.5281]
[1644350340548,70.61947354,111.16,111.07,0.024]
[1644350340749,13.5073,111.13,111.07,0.024]
[1644350340951,13.5073,111.13,111.06,13.5068]
[1644350341352,13.7573,111.13,111.06,13.5068]
[1644350341551,40.37921622,111.12,111.06,56.34373087]
[1644350341952,0.25,111.13,111.06,56.34373087]
[1644350342149,68.7279,111.17,111.06,56.59373087]
[1644350342150,36.6813,111.17,111.06,56.59373087]
[1644350342353,23.7113,111.17,111.07,24.1569]
[1644350342550,23.7113,111.17,111.1,13.4998]
[1644350342750,15.50624477,111.21,111.1,13.7498]
[1644350342960,98.0929,111.22,111.11,46.63058317]
[1644350342961,2.53624477,111.22,111.11,46.63058317]
[1644350343160,5.07948717,111.24,111.11,76.61793255]
[1644350343352,2.53624477,111.26,111.13,0.32310227]
[1644350343554,2.53624477,111.27,111.14,12.97]
[1644350343750,2.53624477,111.27,111.14,37.82824938]
[1644350343951,2.53624477,111.28,111.14,98.01824938]
[1644350344153,41.72955165,111.31,111.15,41.53016715]
[1644350344352,2.53624477,111.32,111.17,0.30286979]
[1644350344551,5.07755969,111.32,111.18,102.48]
[1644350344750,5.07755969,111.33,111.18,102.73]
[1644350344950,5.07755969,111.33,111.18,20.54834938]
[1644350345151,5.07755969,111.33,111.19,1.32834938]
[1644350345352,48.18715997,111.32,111.2,12.97]
[1644350345552,58.6209152,111.32,111.21,44.27876046]
[1644350345751,2.10775549,111.31,111.21,44.27876046]
[1644350345956,44.44827874,111.3,111.21,44.27876046]
[1644350346154,57.41827874,111.3,111.21,44.27876046]
[1644350347652,63.41827874,111.3,111.21,44.27876046]
[1644350348252,63.66827874,111.3,111.21,44.27876046]
[1644350349556,63.66827874,111.3,111.19,0.25]
[1644350349755,63.66827874,111.3,111.17,37.4027]
[1644350349756,63.66827874,111.3,111.17,43.6527]
[1644350349954,77.90703423,111.3,111.17,0.25]
[1644350350355,213.73253423,111.3,111.13,14.5457723]
[1644350350553,124.22253423,111.3,111.14,34.98176443]
[1644350350754,124.22253423,111.3,111.14,35.23176443]
[1644350350955,124.22253423,111.3,111.16,37.54603638]
[1644350351357,124.22253423,111.3,111.16,39.12180868]
[1644350351956,89.51,111.29,111.14,1.32547326]
[1644350352156,90.3215,111.28,111.14,1.32547326]
[1644350352355,92.42925549,111.28,111.14,0.25]
[1644350352754,2.10775549,111.27,111.14,0.25]
[1644350352954,57.4622387,111.26,111.14,0.25]
[1644350353454,37.69684483,111.24,111.13,40.66216709]
[1644350353654,12.97,111.23,111.13,40.66216709]
[1644350353857,37.67842751,111.22,111.1,0.024]
[1644350354255,12.97,111.21,111.1,1.34947326]
[1644350354460,25.202,111.21,111.08,1.34947326]
[1644350354655,25.202,111.21,111.09,0.024]
[1644350354856,35.55102578,111.2,111.09,39.41500165]
[1644350355056,48.52102578,111.2,111.09,39.39100165]
[1644350355255,48.52102578,111.2,111.1,0.024]
[1644350355856,54.77102578,111.2,111.1,0.024]
[1644350356557,54.77102578,111.2,111.08,0.024]
[1644350356856,54.77102578,111.2,111.1,0.024]
[1644350357156,54.77102578,111.2,111.08,0.024]
[1644350357456,54.77102578,111.2,111.08,34.73759348]
[1644350357659,54.77102578,111.2,111.09,0.024]
[1644350359862,54.77102578,111.2,111.1,1.31893733]
[1644350360161,54.77102578,111.2,111.11,34.46564289]
[1644350360361,48.77102578,111.2,111.11,34.71564289]
[1644350360963,48.77102578,111.2,111.11,34.46564289]
[1644350361165,48.77102578,111.2,111.11,34.71564289]
[1644350361764,48.77102578,111.2,111.1,0.024]
[1644350362064,60.01702578,111.2,111.1,0.024]
[1644350362264,69.4221571,111.2,111.1,0.024]
[1644350362864,59.76702578,111.2,111.1,0.024]
[1644350363065,48.52102578,111.2,111.1,0.024]
[1644350363666,48.52102578,111.2,111.11,1.31893733]
[1644350363867,48.52102578,111.2,111.12,37.00815162]
[1644350364064,54.52102578,111.2,111.11,1.56893733]
[1644350364265,54.52102578,111.2,111.1,0.024]
[1644350365086,54.52102578,111.2,111.1,38.99189487]
[1644350365286,54.52102578,111.2,111.1,39.24189487]
[1644350365986,54.52102578,111.2,111.1,0.024]
[1644350366186,67.62778127,111.2,111.1,0.024]
[1644350366390,67.62778127,111.2,111.08,0.024]
[1644350366787,67.87778127,111.2,111.08,0.024]
[1644350367588,67.87778127,111.2,111.07,35.96990753]
[1644350367787,67.87778127,111.2,111.08,0.024]
[1644350368188,0.44,111.19,111.08,0.024]
[1644350368388,12.97,111.18,111.08,0.024]
[1644350368587,47.87492829,111.17,111.08,0.024]
[1644350368788,68.81092829,111.17,111.08,0.024]
[1644350369390,68.81092829,111.17,111.05,0.024]
[1644350370390,71.16868378,111.17,111.05,0.024]
[1644350370590,71.60868378,111.17,111.05,0.024]
[1644350370790,80.55806546,111.17,111.05,0.024]
[1644350370991,170.06806546,111.17,111.05,0.024]
[1644350371391,332.13806546,111.17,111.03,0.024]
[1644350371990,0.44,111.16,111.03,0.024]
[1644350372189,42.46434916,111.14,111.03,0.024]
[1644350372389,37.38504614,111.12,111.03,0.024]
[1644350372591,50.35504614,111.12,111.03,0.024]
[1644350373192,50.35504614,111.12,111.02,0.024]
[1644350374494,50.35504614,111.12,111.02,1.34293733]
[1644350374693,37.38504614,111.12,111.03,45.10596339]
[1644350374895,37.38504614,111.12,111.03,45.12996339]
[1644350375094,37.38504614,111.12,111.03,45.37996339]
[1644350376996,37.38504614,111.12,111.03,52.69890072]
[1644350377194,0.25,111.12,111.03,52.69890072]
[1644350377396,24.1392,111.16,111.03,52.69890072]
[1644350377596,24.1392,111.16,111.04,0.024]
[1644350377996,24.1392,111.16,111.04,1.34293733]
[1644350378196,24.1392,111.16,111.04,7.59293733]
[1644350378397,47.03617011,111.15,111.05,42.8022062]
[1644350378797,47.03617011,111.15,111.05,43.0522062]
[1644350379201,47.03617011,111.15,111.05,49.0522062]
[1644350379399,53.03617011,111.15,111.05,49.0522062]
[1644350379600,53.03617011,111.15,111.05,43.0522062]
[1644350380000,53.03617011,111.15,111.05,0.25]
[1644350380001,65.1319256,111.15,111.05,0.25]
[1644350380199,65.1319256,111.15,111.04,0.024]
[1644350380399,12.97,111.14,111.04,0.024]
[1644350380800,15.07775549,111.14,111.04,0.024]
[1644350381002,41.43017872,111.13,111.04,47.96848013]
[1644350381201,54.40017872,111.13,111.04,47.96848013]
[1644350381601,54.40017872,111.13,111.04,0.024]
[1644350381804,54.40017872,111.13,111.03,24.1199]
[1644350382202,56.50793421,111.13,111.03,24.1199]
[1644350382602,56.50793421,111.13,111.03,0.024]
[1644350382802,56.50793421,111.13,111.01,36.08865374]
[1644350383202,56.50793421,111.13,111.01,42.08865374]
[1644350383503,13.511,111.11,111.01,0.024]
[1644350383703,22.297,111.11,111.01,0.024]
[1644350383906,12.97,111.1,111.01,0.024]
[1644350384106,12.97,111.1,111.0,47.8655]
[1644350384503,41.13737363,111.09,111.01,40.30375611]
[1644350384704,37.6671281,111.07,111.01,40.32775611]
[1644350384905,37.6671281,111.07,111.01,40.30375611]
[1644350385404,37.6671281,111.07,111.0,47.8655]
[1644350386807,37.6671281,111.07,111.01,34.86605305]
[1644350387006,37.6671281,111.07,111.0,47.8415]
[1644350387307,89.51,111.06,110.99,0.024]
[1644350387506,104.58775549,111.06,110.96,0.024]
[1644350387706,13.5212,111.04,110.93,0.024]
[1644350387906,23.1632,111.04,110.93,0.024]
[1644350388106,59.7571771,111.03,110.93,0.024]
[1644350388505,61.86493259,111.03,110.93,0.024]
[1644350389106,13.5238,111.0,110.93,0.024]
[1644350389306,12.97,110.99,110.9,0.024]
[1644350389511,38.50107043,110.98,110.89,0.024]
[1644350389705,12.97,110.97,110.88,0.024]
[1644350389906,39.62950128,110.96,110.88,39.52051902]
[1644350390107,47.40731856,110.94,110.88,39.52051902]
[1644350390309,13.5311,110.93,110.88,39.49651902]
[1644350391308,13.5311,110.93,110.86,0.024]
[1644350391508,13.5311,110.93,110.84,112.524]
[1644350392113,13.5311,110.93,110.84,118.524]
[1644350392309,48.70052283,110.92,110.85,36.18579771]
[1644350392509,48.70052283,110.92,110.85,36.20979771]
[1644350392710,48.70052283,110.92,110.85,42.43579771]
[1644350392909,48.95052283,110.92,110.85,42.43579771]
[1644350394615,13.7812,110.92,110.85,42.43579771]
[1644350395614,52.26833061,110.92,110.85,42.43579771]
[1644350396015,13.7812,110.92,110.85,42.43579771]
[1644350398217,19.7812,110.92,110.85,42.43579771]
[1644350398418,63.80146792,110.92,110.85,55.96629771]
[1644350398617,19.7812,110.92,110.85,55.96629771]
[1644350399216,13.7812,110.92,110.85,55.96629771]
[1644350399818,13.5289,110.93,110.85,55.96629771]
[1644350400017,2.10775549,110.99,110.85,145.47629771]
[1644350400321,6.0,110.98,110.86,12.97]
[1644350400518,6.0,110.98,110.87,89.51]
[1644350400818,46.09337313,111.01,110.91,47.51428099]
[1644350401020,13.5216,110.99,110.92,0.024]
[1644350401219,36.2806,110.99,110.91,0.024]
[1644350401418,36.2806,110.99,110.89,0.024]
[1644350401617,33.29043451,110.98,110.85,45.5362]
[1644350401819,12.97,110.97,110.86,0.024]
[1644350402019,46.04376784,110.97,110.86,0.024]
[1644350402220,58.25849824,110.96,110.86,38.60378214]
[1644350402522,46.09337313,110.94,110.86,38.60378214]
[1644350402718,12.97,110.93,110.86,0.024]
[1644350402919,162.51,110.9,110.78,23.55339574]
[1644350403120,9.42,110.82,110.74,1.27743617]
[1644350403319,18.397,110.82,110.73,649.71770204]
[1644350403521,31.367,110.82,110.73,649.71770204]
[1644350403721,72.97426501,110.82,110.74,42.70181945]
[1644350403919,72.97426501,110.82,110.74,42.20181945]
[1644350404824,43.49546423,110.8,110.74,42.20181945]
[1644350405023,43.49546423,110.8,110.7,46.1254]
[1644350405222,43.49546423,110.8,110.7,52.1254]
[1644350405424,11.1539381,110.79,110.7,52.1254]
[1644350405722,23.1719,110.79,110.7,52.1254]
[1644350405924,9.624,110.79,110.7,53.44433733]
[1644350406422,9.624,110.79,110.7,52.1254]
[1644350406622,57.31597422,110.79,110.71,43.54569777]
[1644350406828,70.86387422,110.79,110.71,43.54569777]
[1644350407023,77.11387422,110.79,110.69,22.8928]
[1644350407422,63.56597422,110.79,110.69,22.8928]
[1644350407628,2.10775549,110.78,110.69,22.8928]
[1644350407922,2.10775549,110.78,110.66,72.8793]
[1644350407923,13.5522,110.76,110.66,72.8793]
[1644350408122,43.12330323,110.75,110.67,36.05952473]
[1644350408824,43.12330323,110.75,110.62,22.8973]
[1644350409023,59.97330323,110.75,110.62,22.8973]
[1644350409421,13.5561,110.73,110.62,22.8973]
[1644350409621,34.4031,110.73,110.62,22.8973]
[1644350409824,47.69197422,110.72,110.63,37.21833766]
[1644350410025,10.85,110.73,110.63,37.21833766]
[1644350410227,16.85,110.75,110.63,37.21833766]
[1644350410723,17.1,110.75,110.63,37.21833766]
[1644350410925,17.1,110.75,110.63,43.21833766]
[1644350411125,44.78228028,110.74,110.63,43.21833766]
[1644350411322,44.78228028,110.74,110.63,43.46833766]
[1644350413022,45.03228028,110.74,110.63,43.46833766]
[1644350413323,24.4016,110.77,110.63,211.47727499]
[1644350413524,13.5516,110.77,110.63,222.32727499]
[1644350413724,13.5516,110.77,110.63,168.13727499]
[1644350413929,13.5516,110.77,110.63,181.68887499]
[1644350414123,37.61059435,110.76,110.63,181.68887499]
[1644350414325,51.16299435,110.76,110.63,167.88727499]
[1644350414526,71.12399435,110.76,110.63,157.03727499]
[1644350414726,73.23174984,110.76,110.63,157.03727499]
[1644350414928,73.23174984,110.76,110.63,155.71833766]
[1644350415923,79.23174984,110.76,110.63,155.71833766]
[1644350416425,79.23174984,110.76,110.63,43.21833766]
[1644350416624,92.87364678,110.76,110.63,43.21833766]
[1644350416823,16.04169361,110.75,110.63,37.21833766]
[1644350417026,13.5616,110.72,110.63,37.21833766]
[1644350417225,51.97978684,110.71,110.63,37.21833766]
[1644350418028,51.97978684,110.71,110.63,43.21833766]
[1644350418226,52.22978684,110.71,110.63,43.21833766]
[1644350418725,13.5604,110.69,110.63,43.21833766]
[1644350418924,39.47746518,110.68,110.63,43.21833766]
[1644350419324,13.5604,110.69,110.63,43.21833766]
[1644350419729,13.5604,110.69,110.63,43.46833766]
[1644350419928,13.5604,110.69,110.63,43.21833766]
[1644350420328,52.61197044,110.69,110.63,43.21833766]
[1644350420726,52.61197044,110.69,110.63,6.0]
[1644350420927,58.61197044,110.69,110.63,6.0]
[1644350421128,58.61197044,110.69,110.61,0.024]
[1644350421349,58.86197044,110.69,110.61,0.024]
[1644350421826,58.86197044,110.69,110.61,34.37026604]
[1644350422028,45.05157044,110.69,110.61,34.37026604]
[1644350422227,45.05157044,110.69,110.61,40.62026604]
[1644350422827,6.0,110.69,110.61,40.62026604]
[1644350423030,10.85,110.71,110.61,40.62026604]
[1644350423730,13.5594,110.7,110.61,40.62026604]
[1644350423929,37.41671,110.69,110.61,40.62026604]
[1644350424636,43.41671,110.69,110.61,40.62026604]
[1644350425032,43.41671,110.69,110.61,40.37026604]
[1644350426135,6.0,110.69,110.61,40.37026604]
[1644350426332,19.5594,110.7,110.61,40.37026604]
[1644350426533,24.4073,110.72,110.61,40.37026604]
[1644350426734,30.4073,110.72,110.61,40.37026604]
[1644350427137,42.97391433,110.71,110.61,40.62026604]
[1644350427835,56.53201433,110.71,110.61,40.62026604]
[1644350428439,55.53201433,110.71,110.61,40.62026604]
[1644350429257,55.78201433,110.71,110.61,40.62026604]
[1644350429757,55.78201433,110.71,110.61,41.89770221]
[1644350430961,65.03401433,110.71,110.61,41.89770221]
[1644350431162,65.03401433,110.71,110.61,41.64770221]
[1644350431359,10.85,110.7,110.61,40.37026604]
[1644350431562,13.562,110.68,110.61,40.37026604]
[1644350431764,43.05559868,110.67,110.61,40.37026604]
[1644350432060,43.05559868,110.67,110.61,40.34626604]
[1644350432662,13.562,110.68,110.61,41.87370221]
[1644350432862,0.25,110.67,110.63,1.27743617]
[1644350433063,0.25,110.67,110.63,7.27743617]
[1644350433665,0.25,110.67,110.64,43.32562071]
[1644350433864,36.66991487,110.69,110.64,43.32562071]
[1644350434064,0.25,110.69,110.64,43.32562071]
[1644350434264,30.4098,110.7,110.64,43.32562071]
[1644350434465,19.8098,110.7,110.64,43.32562071]
[1644350434664,19.8098,110.7,110.64,44.60305688]
[1644350435066,42.59208521,110.69,110.64,44.60305688]
[1644350435666,19.8098,110.7,110.64,44.60305688]
[1644350436266,19.5598,110.7,110.65,1.27743617]
[1644350436666,13.5572,110.72,110.66,41.48827714]
[1644350437067,10.85,110.75,110.66,43.01571331]
[1644350437266,35.4568,110.77,110.67,1.27743617]
[1644350437465,35.4568,110.77,110.67,1.30143617]
[1644350437666,35.4568,110.77,110.67,1.55143617]
[1644350437868,48.25161533,110.76,110.68,48.60300871]
[1644350438168,48.25161533,110.76,110.68,48.62700871]
[1644350438366,48.25161533,110.76,110.68,48.60300871]
[1644350438767,13.5548,110.74,110.68,48.60300871]
[1644350438968,53.18674871,110.74,110.68,48.60300871]
[1644350439368,13.5548,110.74,110.68,48.60300871]
[1644350439571,80.6352,110.77,110.68,48.60300871]
[1644350439769,13.5521,110.76,110.68,48.87700871]
[1644350439972,13.5521,110.76,110.68,54.85300871]
[1644350440375,45.86082096,110.75,110.68,48.60300871]
[1644350440569,45.86082096,110.75,110.68,47.32557254]
[1644350441175,59.41372096,110.75,110.68,47.32557254]
[1644350441573,59.66372096,110.75,110.68,47.32557254]
[1644350441774,61.77147645,110.75,110.67,1.30143617]
[1644350442073,61.77147645,110.75,110.67,1.52743617]
[1644350442373,72.62147645,110.75,110.66,0.024]
[1644350443074,87.07428117,110.75,110.66,0.024]
[1644350443274,96.83244168,110.75,110.64,1.30143617]
[1644350443874,119.51684168,110.75,110.64,1.30143617]
[1644350444074,125.51684168,110.75,110.65,41.15894127]
[1644350444274,125.51684168,110.75,110.65,41.18294127]
[1644350444885,125.51684168,110.75,110.65,0.024]
[1644350445076,143.7,110.74,110.64,1.30143617]
[1644350445276,13.5647,110.71,110.64,0.024]
[1644350445477,10.85,110.7,110.62,1.27743617]
[1644350445676,10.85,110.7,110.61,1.27743617]
[1644350445876,41.95084368,110.69,110.61,43.94744179]
[1644350446076,10.85,110.68,110.61,43.92344179]
[1644350446278,41.42364582,110.67,110.61,43.92344179]
[1644350446576,13.5658,110.66,110.61,43.92344179]
[1644350446776,35.65589789,110.65,110.61,42.64600562]
[1644350447075,56.0691,110.67,110.61,42.64600562]
[1644350447478,56.0691,110.67,110.61,43.92344179]
[1644350447778,13.5652,110.65,110.61,43.92344179]
[1644350448376,13.8152,110.65,110.61,43.92344179]
[1644350448978,13.5652,110.65,110.61,42.64600562]
[1644350449176,13.5652,110.65,110.61,43.92344179]
[1644350450280,13.5652,110.65,110.61,1.27743617]
[1644350450583,13.5652,110.65,110.58,3.85913787]
[1644350450781,13.5652,110.65,110.58,7.30143617]
[1644350450981,13.5652,110.65,110.58,1.30143617]
[1644350451181,13.5652,110.65,110.58,7.30143617]
[1644350451381,13.5686,110.63,110.58,54.76261674]
[1644350451584,13.5686,110.63,110.58,54.73861674]
[1644350451881,13.5686,110.63,110.58,53.46118057]
[1644350452280,48.9573,110.68,110.58,53.46118057]
[1644350452484,10.85,110.67,110.58,53.46118057]
[1644350452680,10.85,110.67,110.58,54.76261674]
[1644350452881,11.1,110.67,110.58,54.76261674]
[1644350453180,34.38366124,110.66,110.58,54.76261674]
[1644350453782,13.5649,110.65,110.58,54.76261674]
[1644350454185,13.5649,110.65,110.58,55.01261674]
[1644350455194,24.4127,110.67,110.58,55.01261674]
[1644350455387,24.4127,110.67,110.59,1.27743617]
[1644350455587,19.5627,110.67,110.6,1.27743617]
[1644350455786,19.5627,110.67,110.6,1.52743617]
[1644350455986,19.5627,110.67,110.61,47.98041969]
[1644350455987,13.5627,110.67,110.61,47.98041969]
[1644350456593,13.8127,110.67,110.61,53.98041969]
[1644350456796,13.8127,110.67,110.61,47.98041969]
[1644350459095,38.13715613,110.66,110.61,47.98041969]
[1644350459296,13.5641,110.65,110.61,47.98041969]
[1644350459698,0.25,110.67,110.61,47.98041969]
[1644350460395,13.8125,110.67,110.61,48.23041969]
[1644350460599,53.64298171,110.67,110.61,48.23041969]
[1644350460796,53.64298171,110.67,110.61,47.98041969]
[1644350462298,13.8125,110.67,110.61,47.98041969]
[1644350463911,13.5625,110.67,110.61,48.23041969]
[1644350464113,13.56,110.69,110.61,60.09841969]
[1644350464312,1.26846988,110.75,110.62,20.99581146]
[1644350464518,58.4527,110.76,110.63,47.24263617]
[1644350464714,58.4527,110.76,110.64,1.27743617]
[1644350465014,53.76573339,110.76,110.65,20.99581146]
[1644350465211,53.76573339,110.76,110.66,34.48986752]
[1644350465212,13.5525,110.75,110.66,34.48986752]
[1644350465413,40.68759042,110.74,110.66,55.48567898]
[1644350465613,40.68759042,110.74,110.66,61.73567898]
[1644350465812,40.68759042,110.74,110.65,1.30143617]
[1644350466015,53.64534591,110.74,110.65,6.0]
[1644350466213,53.64534591,110.74,110.64,0.024]
[1644350466914,53.64534591,110.74,110.64,43.44054253]
[1644350466915,34.30763184,110.72,110.64,43.44054253]
[1644350467217,34.30763184,110.72,110.63,0.024]
[1644350467416,15.13775549,110.71,110.63,0.024]
[1644350467615,25.08175549,110.71,110.61,1.30143617]
[1644350467815,15.66735549,110.7,110.61,1.30143617]
[1644350468016,13.03,110.69,110.61,0.024]
[1644350468215,60.65307463,110.69,110.6,40.52950776]
[1644350468615,60.65307463,110.69,110.6,40.55350776]
[1644350468819,13.5639,110.67,110.62,48.11876886]
[1644350469017,55.52124776,110.67,110.62,48.11876886]
[1644350469417,55.52124776,110.67,110.61,0.024]
[1644350469617,55.52124776,110.67,110.59,1.27743617]
[1644350470019,55.52124776,110.67,110.6,21.03570028]
[1644350470420,55.52124776,110.67,110.61,39.65509064]
[1644350471819,55.52124776,110.67,110.61,40.93252681]
[1644350472119,55.52124776,110.67,110.61,1.27743617]
[1644350472319,55.77124776,110.67,110.6,7.27743617]
[1644350472520,55.77124776,110.67,110.6,1.27743617]
[1644350472720,55.52124776,110.67,110.6,6.0]
[1644350472920,68.55124776,110.67,110.6,47.87341593]
[1644350473923,68.55124776,110.67,110.6,6.0]
[1644350474125,68.80124776,110.67,110.59,7.27743617]
[1644350474328,68.80124776,110.67,110.59,1.27743617]
[1644350474524,68.80124776,110.67,110.6,21.04484273]
[1644350474725,68.80124776,110.67,110.6,28.3222789]
[1644350474926,68.80124776,110.67,110.6,65.37560547]
[1644350475324,68.80124776,110.67,110.6,44.33076274]
[1644350476225,74.80124776,110.67,110.6,44.33076274]
[1644350479031,26.5939,110.67,110.6,44.33076274]
[1644350479239,26.5939,110.67,110.6,53.88276274]
[1644350479433,13.5639,110.67,110.61,22.30637906]
[1644350479632,13.5639,110.67,110.61,28.30637906]
[1644350479832,13.5639,110.67,110.62,21.02894289]
[1644350480034,13.5639,110.67,110.62,57.28035683]
[1644350480635,13.5639,110.67,110.62,36.25141394]
[1644350481736,13.8139,110.67,110.62,37.52885011]
[1644350481938,13.8139,110.67,110.62,36.25141394]
[1644350482538,13.5639,110.67,110.62,37.77885011]
[1644350482741,13.5596,110.68,110.62,37.77885011]
[1644350482937,13.5596,110.68,110.63,1.27743617]
[1644350483137,13.5596,110.68,110.64,39.61337335]
[1644350484039,13.5585,110.69,110.64,39.61337335]
[1644350485039,13.5573,110.7,110.64,39.61337335]
[1644350485241,13.5573,110.7,110.64,39.86337335]
[1644350485439,13.5573,110.7,110.64,41.14080952]
[1644350485640,13.5573,110.7,110.64,39.86337335]
[1644350486239,13.8073,110.7,110.64,39.86337335]
[1644350486440,13.5573,110.7,110.64,39.86337335]
[1644350487041,42.67537523,110.69,110.64,0.25]
[1644350487242,56.23407523,110.69,110.63,1.27743617]
[1644350487442,62.23407523,110.69,110.63,1.27743617]
[1644350487641,62.23407523,110.69,110.62,1.27743617]
[1644350487845,62.48407523,110.69,110.62,1.52743617]
[1644350488043,56.48407523,110.69,110.62,1.52743617]
[1644350488244,56.48407523,110.69,110.63,48.69053846]
[1644350488444,13.8087,110.69,110.63,69.71690335]
[1644350488865,13.8087,110.69,110.63,48.94053846]
[1644350489043,13.8087,110.69,110.63,50.21797463]
[1644350489245,13.8087,110.69,110.64,21.0197996]
[1644350489446,0.25,110.69,110.65,43.07467784]
[1644350489846,13.5571,110.7,110.65,43.07467784]
[1644350490448,50.92618562,110.74,110.65,43.07467784]
[1644350490648,50.92618562,110.74,110.65,52.55467784]
[1644350490649,32.53298562,110.74,110.65,52.55467784]
[1644350490846,6.0,110.74,110.65,52.55467784]
[1644350491049,13.03,110.77,110.66,1.32529433]
[1644350491246,13.03,110.77,110.66,23.84922999]
[1644350491449,45.86536941,110.76,110.67,40.35329855]
[1644350491648,45.86536941,110.76,110.67,62.67509237]
[1644350491848,45.86536941,110.76,110.67,62.92509237]
[1644350492049,45.86536941,110.76,110.67,41.92859288]
[1644350492349,13.5522,110.74,110.67,40.35329855]
[1644350492549,57.50210804,110.74,110.67,40.35329855]
[1644350492748,13.5522,110.74,110.67,40.35329855]
[1644350493151,13.5522,110.74,110.67,40.60329855]
[1644350494656,13.5522,110.74,110.67,46.60329855]
[1644350494852,150.90476988,110.8,110.68,90.97586592]
[1644350494853,50.14406988,110.8,110.68,90.97586592]
[1644350495151,48.8756,110.8,110.68,109.62786592]
[1644350495351,14.29846988,110.81,110.69,35.84936025]
[1644350495553,13.5461,110.79,110.7,22.8739]
[1644350495752,40.71252754,110.78,110.71,37.53691634]
[1644350495951,13.5461,110.79,110.71,37.53691634]
[1644350496152,13.5461,110.79,110.71,37.78691634]
[1644350496551,13.5461,110.79,110.71,48.40591634]
[1644350496752,13.5461,110.79,110.71,10.619]
[1644350496955,21.65385549,110.79,110.67,1.32529433]
[1644350497152,13.03,110.78,110.67,6.0]
[1644350497354,13.5544,110.75,110.66,24.1418]
[1644350497657,13.5544,110.75,110.66,24.3918]
[1644350497855,13.5544,110.75,110.67,45.0691174]
[1644350498854,39.7789223,110.74,110.67,45.0691174]
[1644350499258,13.5531,110.74,110.67,45.3191174]
[1644350500257,37.94596718,110.73,110.67,45.3191174]
[1644350500456,13.555,110.72,110.67,45.3191174]
[1644350502361,44.88136473,110.71,110.67,45.3191174]
[1644350502560,58.43706473,110.71,110.67,45.3191174]
[1644350503060,58.43706473,110.71,110.67,0.25]
[1644350503263,58.43706473,110.71,110.66,0.25]
[1644350503760,58.43706473,110.71,110.65,24.9908]
[1644350503984,58.43706473,110.71,110.66,46.47008255]
[1644350504183,58.68706473,110.71,110.66,46.47008255]
[1644350504384,58.68706473,110.71,110.66,46.72008255]
[1644350504586,58.43706473,110.71,110.66,46.72008255]
[1644350504785,58.43706473,110.71,110.66,0.25]
[1644350505388,8.43706473,110.71,110.66,0.25]
[1644350505587,8.43706473,110.71,110.65,30.9908]
[1644350505791,8.43706473,110.71,110.66,35.97082857]
[1644350506190,8.43706473,110.71,110.66,36.22082857]
[1644350507588,8.43706473,110.71,110.66,42.22082857]
[1644350507988,8.43706473,110.71,110.66,35.97082857]